bitfinex/quotes_ETHUSD_20250123
["timestamp","ask_amount","ask_price","bid_price","bid_amount"]
[1737597864128,0.6242581,3228.0,3227.2,3.0]
[1737597864421,0.6242581,3228.0,3227.1,5.77533]
[1737597864422,3.09875,3227.1,3226.7,0.6766]
[1737597864619,0.773,3227.9,3226.7,0.6766]
[1737597864620,3.09856,3227.3,3226.7,0.6766]
[1737597864842,3.09856,3227.3,3226.7,3.80670684]
[1737597865390,3.09856,3227.3,3226.7,3.70758684]
[1737597866003,0.773,3227.9,3226.7,3.70758684]
[1737597866004,3.09818,3227.7,3227.1,3.09875]
[1737597866225,3.09818,3227.7,3227.0,2.0]
[1737597866226,0.61809552,3227.6,3227.0,2.0]
[1737597866427,3.09859,3227.3,3226.7,0.6766]
[1737597867093,3.09859,3227.3,3226.7,0.70758799]
[1737597867516,3.09859,3227.3,3226.7,3.70758799]
[1737597867722,0.61809552,3227.6,3226.7,3.70758799]
[1737597868025,3.09848,3227.4,3226.7,6.80669799]
[1737597868250,3.09848,3227.4,3226.7,7.09771]
[1737597868732,3.71641552,3227.6,3226.8,3.09904]
[1737597868890,3.71641552,3227.6,3226.9,0.03098541]
[1737597869089,3.09839,3227.5,3226.9,0.03098541]
[1737597869334,3.09847,3227.4,3226.7,3.9986]
[1737597869695,3.09852,3227.4,3226.7,3.9986]
[1737597869904,3.09852,3227.4,3226.7,7.12868542]
[1737597870121,3.09852,3227.4,3226.7,7.0977]
[1737597870307,4.39784707,3227.6,3226.3,0.6766]
[1737597870308,3.09884,3227.1,3226.3,0.6766]
[1737597870513,3.09908,3226.8,3226.3,0.6766]
[1737597870833,3.09908,3226.8,3226.1,5.0997]
[1737597870834,3.09923,3226.6,3226.1,0.322]
[1737597871019,3.09938,3226.5,3226.0,2.0]
[1737597871232,3.0985,3227.4,3225.9,0.6766]
[1737597871233,3.09981,3226.0,3225.9,0.322]
[1737597871411,0.55,3225.9,3225.2,0.9986]
[1737597871729,3.10067,3225.1,3225.0,2.0]
[1737597871952,0.55,3226.0,3224.7,0.6766]
[1737597872096,0.55,3226.0,3224.6,2.0]
[1737597872097,1.323,3226.0,3224.6,2.0]
[1737597872295,1.323,3226.0,3224.2,3.21901358]
[1737597872296,3.10144,3224.3,3224.2,3.21901358]
[1737597872931,3.10134,3224.5,3224.2,3.21901358]
[1737597873093,0.773,3224.8,3224.2,3.21901358]
[1737597873303,3.10131,3224.5,3223.4,1.98840848]
[1737597873529,3.10208,3223.7,3223.4,1.98840848]
[1737597873742,3.10177,3224.0,3223.4,1.98840848]
[1737597873910,3.10151,3224.3,3223.5,0.03101874]
[1737597874296,3.1012,3224.6,3223.9,1.98840848]
[1737597874530,3.10098,3224.8,3224.0,0.03101549]
[1737597874732,1.855,3227.7,3224.0,0.03101549]
[1737597874733,3.10066,3225.2,3224.3,1.98840848]
[1737597875034,3.10066,3225.2,3224.4,0.0310093]
[1737597875228,3.1003,3225.5,3224.8,1.98840848]
[1737597875430,0.31003,3225.4,3224.8,1.98840848]
[1737597875741,0.31003,3225.4,3224.6,0.03100586]
[1737597876031,0.31003,3225.4,3224.7,35.0]
[1737597876232,3.10011,3225.7,3224.8,5.03100747]
[1737597876418,3.10038,3225.5,3224.8,5.03100747]
[1737597876733,3.1001,3225.7,3224.8,8.13196747]
[1737597876933,3.1001,3225.7,3225.0,3.0]
[1737597877251,3.10024,3225.6,3225.1,0.03100343]
[1737597877396,3.1001,3225.7,3225.1,0.03100343]
[1737597877730,3.1001,3225.7,3225.2,2.0]
[1737597878622,3.10031,3225.5,3225.2,2.0]
[1737597878805,0.31001,3225.6,3225.2,2.0]
[1737597879010,3.71539526,3226.0,3225.3,0.03100221]
[1737597879756,3.86512,3226.2,3225.3,0.03100221]
[1737597880035,3.0998,3226.1,3225.3,3.13147221]
[1737597880436,1.3331,3226.7,3225.7,2.0]
[1737597880437,6.19904,3226.4,3225.7,2.0]
[1737597880636,3.09952,3226.4,3225.8,0.03099585]
[1737597880807,3.719396,3226.4,3225.8,0.03099585]
[1737597881007,3.88167,3227.3,3226.6,2.0]
[1737597881225,3.09867,3227.2,3226.6,2.03098884]
[1737597881607,3.77973155,3227.6,3226.6,2.03098884]
[1737597881811,3.09849,3227.4,3226.6,5.13020884]
[1737597882011,3.09838,3227.5,3226.6,5.13020884]
[1737597882331,3.09866,3227.2,3226.6,2.03098884]
[1737597882540,0.37798416,3227.4,3226.6,2.0]
[1737597882712,3.09905,3226.8,3226.4,2.6766]
[1737597883202,3.09905,3226.8,3226.5,3.0]
[1737597883598,3.09905,3226.8,3226.4,2.6766]
[1737597884219,3.09862,3227.3,3226.5,0.03099079]
[1737597884437,3.09913,3226.8,3226.4,2.0]
[1737597884737,3.409043,3226.8,3226.4,2.0]
[1737597885039,3.09933,3226.5,3225.4,2.6766]
[1737597885226,3.09942,3226.4,3225.3,0.37]
[1737597885432,3.10027,3225.6,3225.3,0.37]
[1737597885738,3.10027,3225.6,3225.0,2.6766]
[1737597885939,3.10027,3225.6,3225.1,3.0]
[1737597886164,0.7831,3225.9,3224.5,0.6766]
[1737597886341,3.10062,3225.2,3224.5,2.6766]
[1737597886507,3.410682,3225.2,3224.6,3.0]
[1737597887343,3.10075,3225.1,3224.6,3.0]
[1737597887640,3.10075,3225.1,3224.2,2.0]
[1737597887641,3.10127,3224.5,3224.2,2.0]
[1737597887937,3.10114,3224.7,3224.2,2.03101208]
[1737597888140,3.410672,3225.2,3224.3,0.03101156]
[1737597888316,3.1004,3225.4,3224.8,2.0]
[1737597888689,0.309942,3226.3,3224.8,2.0]
[1737597888690,3.09962,3226.2,3225.0,0.6766]
[1737597888814,3.09984,3226.0,3225.3,2.0]
[1737597889139,3.09984,3226.0,3225.4,35.03099918]
[1737597889445,3.719786,3226.0,3225.5,0.03099906]
[1737597889819,0.309942,3226.3,3225.7,2.0]
[1737597890029,3.09942,3226.5,3225.9,0.6766]
[1737597890323,0.309913,3226.8,3226.1,2.0]
[1737597890529,3.09915,3226.7,3226.2,0.03099219]
[1737597890729,3.09886,3227.0,3226.2,0.03099219]
[1737597891305,3.09875,3227.1,3226.2,0.03099219]
[1737597891548,3.09915,3226.7,3226.1,2.0]
[1737597891844,3.09885,3227.0,3226.5,2.0]
[1737597892341,3.718602,3227.0,3226.5,2.0]
[1737597892543,3.09914,3226.7,3226.1,5.0]
[1737597893715,0.619752,3227.0,3226.5,2.0]
[1737597893940,3.62639626,3227.6,3226.5,2.0]
[1737597894144,3.09885,3227.0,3226.5,2.0]
[1737597894863,3.09862,3227.3,3226.6,0.03098891]
[1737597895157,3.09862,3227.3,3226.6,3.13021891]
[1737597895642,3.09824,3227.7,3227.0,5.0]
[1737597895951,3.09828,3227.6,3227.1,0.0309835]
[1737597896140,3.09814,3227.8,3227.1,0.0309835]
[1737597896344,3.09791,3228.0,3227.2,3.0]
[1737597896514,3.09791,3228.0,3227.4,2.0]
[1737597896710,3.09791,3228.0,3227.5,0.03097971]
[1737597896916,0.63302709,3228.4,3227.5,0.03097971]
[1737597897224,3.0977,3228.2,3227.5,0.03097971]
[1737597897439,3.47077271,3228.2,3227.5,0.03097971]
[1737597897820,0.37307271,3228.2,3227.5,0.03097971]
[1737597898019,3.09836,3227.6,3227.0,2.0]
[1737597898229,3.09818,3227.7,3227.0,2.0]
[1737597898547,3.09838,3227.5,3227.0,2.0]
[1737597898744,3.09838,3227.5,3226.0,8.81]
[1737597898946,3.09859,3227.3,3226.5,2.0]
[1737597899158,3.09887,3227.0,3226.6,2.0]
[1737597899636,3.09863,3227.3,3226.6,2.0]
[1737597899836,3.09866,3227.2,3226.6,2.0]
[1737597900419,0.55,3227.5,3226.2,2.37]
[1737597900646,0.7831,3227.6,3226.2,2.0]
[1737597900647,3.09933,3226.5,3226.2,2.0]
[1737597900851,3.71412353,3227.7,3225.9,2.0]
[1737597900852,0.7831,3226.8,3225.9,2.0]
[1737597901032,3.0993,3226.6,3226.0,0.03099518]
[1737597901347,3.09907,3226.8,3226.0,0.03099518]
[1737597901549,0.7831,3227.2,3226.4,2.0]
[1737597901550,3.09868,3227.2,3226.4,2.0]
[1737597901746,3.09868,3227.2,3226.5,0.70759025]
[1737597902243,3.09886,3227.0,3226.5,0.6766]
[1737597902442,3.09818,3227.7,3226.8,2.0]
[1737597902649,3.09806,3227.9,3227.2,2.0]
[1737597902825,3.0978,3228.1,3227.4,0.6766]
[1737597903021,3.0978,3228.1,3227.5,0.03097973]
[1737597903239,3.09791,3228.0,3227.5,0.03097973]
[1737597903828,3.09791,3228.0,3227.4,0.6766]
[1737597904163,0.5,3229.4,3227.7,2.0]
[1737597904164,3.09751,3228.4,3227.7,2.0]
[1737597904328,3.09751,3228.4,3227.8,0.03097566]
[1737597904528,3.0973,3228.7,3228.1,2.0]
[1737597904762,0.61645107,3229.1,3228.2,0.70757363]
[1737597904763,3.09713,3228.8,3228.2,0.70757363]
[1737597904960,3.09697,3229.0,3228.2,3.80522363]
[1737597905149,3.09686,3229.1,3228.2,3.80522363]
[1737597905150,3.09686,3229.1,3228.5,2.0]
[1737597905367,3.09691,3229.1,3228.6,0.0309693]
[1737597905530,3.09694,3229.0,3228.6,0.0309693]
[1737597906057,3.09674,3229.2,3228.9,2.0]
[1737597906364,0.8062,3229.3,3228.9,2.0]
[1737597906365,3.09685,3229.1,3228.9,2.0]
[1737597906564,0.390294,3229.2,3228.4,0.03096758]
[1737597906732,3.09712,3228.9,3228.3,2.0]
[1737597906934,3.09732,3228.6,3228.3,2.0]
[1737597907162,3.09742,3228.5,3228.3,2.0]
[1737597907351,3.09723,3228.7,3228.3,2.0]
[1737597907556,3.09704,3228.9,3228.3,2.0]
[1737597907751,3.09714,3228.8,3228.3,2.0]
[1737597908764,3.09683,3229.1,3228.7,2.0]
[1737597908965,3.09673,3229.3,3228.8,0.6766]
[1737597909131,3.09673,3229.3,3228.8,0.70756749]
[1737597909532,3.09646,3229.5,3228.8,3.70756749]
[1737597909957,3.0964,3229.6,3229.2,2.0]
[1737597910151,3.09626,3229.7,3229.2,2.0]
[1737597910152,3.09648,3229.5,3229.2,2.0]
[1737597910369,3.09626,3229.7,3229.2,2.0]
[1737597910753,3.09606,3230.0,3229.3,0.03096371]
[1737597910932,3.09604,3230.0,3229.3,0.03096371]
[1737597911132,3.09558,3230.5,3229.7,2.6766]
[1737597911362,3.09566,3230.4,3229.8,0.03095889]
[1737597911797,3.0954,3230.6,3229.8,0.03095889]
[1737597911997,3.0954,3230.6,3229.9,3.0]
[1737597912171,3.0954,3230.6,3230.4,2.0]
[1737597912575,3.09589,3230.1,3229.8,2.0]
[1737597912771,3.09605,3230.0,3229.8,2.0]
[1737597912996,3.09654,3229.5,3229.3,2.6766]
[1737597913222,3.09655,3229.4,3229.3,2.0]
[1737597913877,3.09676,3229.2,3228.7,2.6766]
[1737597914085,3.09616,3229.8,3228.7,0.6766]
[1737597914286,3.09679,3229.2,3228.6,2.0]
[1737597914489,3.09704,3228.9,3228.6,2.0]
[1737597914691,3.09717,3228.8,3228.4,0.396]
[1737597914900,3.09704,3228.9,3228.4,3.396]
[1737597915108,3.09722,3228.7,3228.4,0.396]
[1737597915311,0.309679,3229.2,3228.4,0.396]
[1737597915498,3.09673,3229.3,3228.4,0.396]
[1737597915499,3.09722,3228.8,3228.4,0.396]
[1737597915675,3.0972,3228.8,3228.4,2.396]
[1737597915873,3.09726,3228.7,3228.4,2.396]
[1737597916107,3.09724,3228.7,3228.4,2.0]
[1737597916287,3.09724,3228.7,3228.0,2.0]
[1737597916489,3.09741,3228.5,3228.4,2.0]
[1737597916799,3.716648,3228.7,3228.4,2.0]
[1737597916996,3.09741,3228.5,3227.9,1.0726]
[1737597917197,0.619428,3228.7,3227.5,0.6766]
[1737597917399,3.09799,3227.9,3227.5,2.6766]
[1737597918198,3.09809,3227.8,3227.5,2.6766]
[1737597918590,3.09809,3227.8,3227.5,0.6766]
[1737597918794,0.55,3228.5,3227.2,2.0]
[1737597919004,3.09835,3227.6,3227.2,2.0]
[1737597919201,3.0981,3227.8,3227.2,2.0]
[1737597919387,3.09818,3227.7,3227.2,2.0]
[1737597919587,3.09791,3228.0,3227.3,0.03098301]
[1737597919793,3.09807,3227.9,3227.3,0.03098301]
[1737597920016,3.09807,3227.9,3227.2,2.0]
[1737597920311,3.09823,3227.7,3227.2,2.0]
[1737597920510,0.619598,3227.9,3226.8,2.0]
[1737597920511,1.425798,3227.9,3226.8,2.0]
[1737597920710,3.09894,3226.9,3226.8,2.0]
[1737597922085,3.09858,3227.3,3226.8,2.0]
[1737597922284,3.09839,3227.5,3226.8,2.0]
[1737597922485,3.09839,3227.5,3227.2,2.0]
[1737597922486,3.09837,3227.5,3227.2,2.0]
[1737597922883,3.09818,3227.7,3227.3,35.0]
[1737597923301,3.09827,3227.6,3227.2,2.0]
[1737597923522,3.09808,3227.8,3227.2,2.03098304]
[1737597923730,3.0979,3228.0,3227.2,2.03098304]
[1737597923895,3.0979,3228.0,3227.3,35.0]
[1737597924098,3.09809,3227.8,3227.3,35.0]
[1737597924294,3.09809,3227.8,3227.5,2.0]
[1737597924494,3.09844,3227.5,3227.3,35.0]
[1737597924700,3.09846,3227.4,3227.0,2.0]
[1737597924917,3.09866,3227.2,3226.9,0.6766]
[1737597925331,3.09848,3227.4,3226.9,0.6766]
[1737597925789,3.09867,3227.2,3226.9,0.6766]
[1737597926790,3.09851,3227.4,3226.9,0.6766]
[1737597927118,3.09865,3227.3,3226.9,0.6766]
[1737597927336,0.309865,3227.2,3226.7,35.0]
[1737597927498,0.8152,3227.3,3226.6,2.0]
[1737597927706,3.09897,3226.9,3226.6,2.0]
[1737597927929,3.09897,3226.9,3226.6,35.0]
[1737597928124,3.09875,3227.1,3226.5,2.0]
[1737597928322,3.09887,3227.0,3226.5,2.0]
[1737597928691,3.09897,3226.9,3226.5,2.0]
[1737597930062,0.60452339,3227.7,3226.5,2.0]
[1737597930384,3.09848,3227.4,3226.6,0.03098947]
[1737597930584,3.09874,3227.2,3226.6,0.03098947]
[1737597930721,3.09897,3226.9,3226.6,0.03098947]
[1737597930925,3.09878,3227.1,3226.6,0.03098947]
[1737597931270,3.09902,3226.9,3226.7,35.0]
[1737597931570,0.309878,3227.1,3226.5,2.396]
[1737597931571,3.09912,3226.8,3226.5,2.396]
[1737597931753,3.09912,3226.8,3226.5,2.0]
[1737597931956,3.09912,3226.8,3226.6,35.0]
[1737597932126,3.09912,3226.8,3226.5,2.0]
[1737597932878,1.434997,3226.8,3225.8,2.0]
[1737597933178,1.434997,3226.8,3225.2,0.6766]
[1737597933179,3.10013,3225.7,3225.2,0.6766]
[1737597933327,3.1004,3225.4,3225.2,0.6766]
[1737597933528,3.1004,3225.4,3224.7,2.229]
[1737597933529,3.10058,3225.2,3224.8,0.413]
[1737597933845,3.10058,3225.2,3224.7,2.9056]
[1737597933846,3.10096,3224.8,3224.7,2.229]
[1737597934029,3.10077,3225.0,3224.4,0.31872043]
[1737597934239,3.10125,3224.5,3224.4,0.31872043]
[1737597934585,3.10115,3224.6,3223.7,38.20942646]
[1737597934795,3.492527,3224.9,3223.7,40.20942646]
[1737597934949,3.492527,3224.9,3223.8,0.03101642]
[1737597934950,3.10146,3224.3,3223.8,0.03101642]
[1737597935147,3.10146,3224.3,3223.8,0.03101601]
[1737597935460,3.10097,3224.8,3224.2,0.6766]
[1737597935670,3.10097,3224.8,3224.2,0.70761002]
[1737597935829,3.10079,3225.0,3224.5,2.0]
[1737597936027,3.10058,3225.2,3224.5,2.0]
[1737597936028,3.10058,3225.2,3224.6,0.03100827]
[1737597936327,3.10041,3225.4,3224.9,2.0]
[1737597936929,3.10041,3225.4,3225.0,35.0]
[1737597937391,3.10058,3225.2,3225.0,35.0]
[1737597937583,3.10058,3225.2,3223.4,8.81]
[1737597937584,3.89848,3225.2,3223.9,2.0]
[1737597937787,3.10144,3224.4,3223.9,2.0]
[1737597938270,3.10144,3224.4,3224.0,35.0]
[1737597938470,3.10122,3224.6,3224.0,35.0]
[1737597938654,3.10122,3224.6,3224.1,0.03101333]
[1737597938864,3.10098,3224.8,3224.1,0.03101333]
[1737597938865,3.10098,3224.8,3224.3,2.0]
[1737597939047,3.10076,3225.1,3224.3,2.0]
[1737597939048,3.10124,3224.6,3224.3,2.0]
[1737597939249,3.10118,3224.6,3224.3,2.0]
[1737597939447,3.10126,3224.5,3224.3,2.0]
[1737597939760,3.10126,3224.5,3224.4,35.0]
[1737597940272,3.10112,3224.7,3224.4,35.0]
[1737597940577,3.10099,3224.8,3224.4,35.0]
[1737597940738,3.10125,3224.5,3224.4,35.0]
[1737597941573,3.10125,3224.5,3224.1,2.0]
[1737597941895,3.10163,3224.2,3223.4,0.6766]
[1737597942037,3.10163,3224.2,3223.5,35.0]
[1737597942240,3.10184,3223.9,3223.5,37.0]
[1737597942658,3.10177,3224.0,3223.5,37.0]
[1737597942983,3.10163,3224.2,3223.5,2.0]
[1737597942984,3.10184,3223.9,3223.5,2.0]
[1737597943342,3.10184,3223.9,3223.5,37.0]
[1737597943546,0.7979,3224.4,3223.5,2.0]
[1737597943803,3.1023,3223.5,3223.1,2.0]
[1737597944086,3.10252,3223.2,3222.8,35.6766]
[1737597944289,3.10271,3223.0,3222.6,2.0]
[1737597945283,3.10253,3223.2,3222.6,2.0]
[1737597945453,0.7979,3223.5,3222.6,2.0]
[1737597945661,3.1028,3222.9,3222.6,2.0]
[1737597947271,3.10262,3223.1,3222.6,2.0]
[1737597947954,3.1027,3223.0,3222.6,2.0]
[1737597948383,3.41312,3222.9,3222.6,2.0]
[1737597948580,3.10285,3222.9,3222.6,2.0]
[1737597949971,3.10289,3222.8,3222.6,2.0]
[1737597950171,3.10298,3222.7,3222.6,2.0]
[1737597950372,3.09211988,3222.7,3222.6,2.0]
[1737597950670,3.10285,3222.9,3222.6,37.0]
[1737597951106,3.10291,3222.8,3222.6,35.0]
[1737597951493,3.1033,3222.4,3222.1,0.1678066]
[1737597953676,3.10338,3222.3,3222.1,0.1678066]
[1737597953875,3.10346,3222.2,3222.1,0.1678066]
[1737597954888,3.724136,3222.2,3222.1,0.1678066]
[1737597955295,5.086136,3222.2,3222.1,0.1678066]
[1737597955617,8.086136,3222.2,3222.1,0.1678066]
[1737597956024,8.72140325,3222.2,3222.1,0.1678066]
[1737597957737,5.72140325,3222.2,3222.1,0.1678066]
[1737597960407,8.72140325,3222.2,3222.1,6.6e-06]
[1737597960912,3.10502,3220.6,3220.2,0.6766]
[1737597961112,3.10491,3220.7,3220.2,0.6766]
[1737597961440,3.10538,3220.3,3220.2,0.45884543]
[1737597961859,3.10538,3220.3,3220.2,0.40884543]
[1737597962175,3.91679,3220.9,3219.7,0.005]
[1737597962176,3.10578,3219.8,3219.7,0.005]
[1737597962442,3.10566,3220.0,3219.7,0.005]
[1737597963022,3.73742261,3220.4,3219.7,0.005]
[1737597963221,3.1054,3220.2,3219.8,0.6766]
[1737597963421,3.10531,3220.3,3219.8,0.6766]
[1737597963645,3.1054,3220.2,3219.8,0.6766]
[1737597963849,0.63221261,3220.4,3219.8,0.6766]
[1737597964043,3.10578,3219.8,3219.7,0.005]
[1737597964446,3.416358,3219.8,3219.7,0.005]
[1737597964646,4.228358,3219.8,3219.7,0.005]
[1737597964942,1.122578,3219.8,3219.7,0.005]
[1737597965149,4.228358,3219.8,3219.7,0.005]
[1737597966514,4.85287508,3219.8,3219.7,0.005]
[1737597971482,3.10542,3220.2,3219.7,0.005]
[1737597971683,3.10549,3220.1,3219.7,0.005]
[1737597971848,3.10527,3220.4,3219.7,0.005]
[1737597972043,0.7883,3220.7,3219.8,0.6766]
[1737597972044,3.10499,3220.7,3219.8,0.6766]
[1737597972282,0.61274555,3220.3,3219.9,2.0]
[1737597973183,0.61274555,3220.3,3219.8,0.6766]
[1737597973485,3.10578,3219.8,3219.7,0.005]
[1737597974253,4.037492,3219.8,3219.7,0.005]
[1737597974451,4.825792,3219.8,3219.7,0.005]
[1737597974861,4.037492,3219.8,3219.7,0.005]
[1737597975162,3.10578,3219.8,3219.7,0.005]
[1737597975361,3.7883,3220.6,3219.7,0.005]
[1737597975561,3.10578,3219.8,3219.7,0.005]
[1737597984984,3.10566,3220.0,3219.7,0.005]
[1737597985375,0.63130959,3220.1,3219.7,0.005]
[1737597985376,3.1057,3219.9,3219.7,0.6816]
[1737597985662,3.10543,3220.2,3219.7,0.6816]
[1737597985863,0.60712777,3220.3,3219.7,0.71265491]
[1737597986161,3.10568,3219.9,3219.8,0.10642361]
[1737597986973,3.10549,3220.1,3219.8,0.10642361]
[1737597987384,3.10567,3220.0,3219.7,0.005]
[1737597987771,3.10542,3220.2,3219.7,0.005]
[1737597987993,3.10542,3220.2,3219.7,0.03605554]
[1737597988300,3.10551,3220.1,3219.7,0.005]
[1737597989303,3.10577,3219.9,3219.7,0.005]
[1737597989460,3.10578,3219.8,3219.7,0.005]
[1737597991208,3.88998,3219.8,3219.7,0.005]
[1737597991387,4.51517598,3219.8,3219.7,0.005]
[1737597995284,4.51517598,3219.8,3218.5,0.6766]
[1737597995285,3.10665,3218.9,3218.5,0.6766]
[1737597995483,3.10665,3218.9,3218.1,2.6766]
[1737597996219,3.10665,3218.9,3217.6,35.0]
[1737597996220,3.10732,3218.2,3217.7,0.6766]
[1737597996383,0.55,3219.0,3217.7,0.6766]
[1737597996590,3.10768,3217.9,3217.7,0.6766]
[1737597997111,3.10742,3218.1,3217.7,0.6766]
[1737597997307,3.10752,3218.0,3217.7,0.6766]
[1737597997980,0.62043285,3217.8,3217.7,0.6766]
[1737597998386,3.10725,3218.3,3217.7,0.6766]
[1737597998586,0.62894214,3218.3,3218.0,2.0]
[1737597999018,3.0,3219.2,3218.2,3.10731]
[1737597999019,3.10662,3219.0,3218.2,3.10731]
[1737597999306,3.10662,3219.0,3218.4,2.0]
[1737597999520,3.10645,3219.1,3218.5,35.70766582]
[1737597999721,3.73855983,3219.1,3218.5,35.6766]
[1737598000136,0.63210983,3219.1,3218.5,35.6766]
[1737598000623,3.73856983,3219.1,3218.5,35.6766]
[1737598000923,0.63210983,3219.1,3218.6,0.03106561]
[1737598001111,3.73855983,3219.1,3218.6,0.03106561]
[1737598001922,0.63210983,3219.1,3218.8,2.0]
[1737598003240,0.63210983,3219.1,3218.5,0.6766]
[1737598003383,3.10691,3218.7,3218.5,0.6766]
[1737598003578,1.00594981,3219.1,3218.1,2.6766]
[1737598003579,3.10694,3218.6,3218.1,2.6766]
[1737598004002,3.10672,3218.9,3218.1,5.78402]
[1737598004791,3.10682,3218.8,3218.1,5.78402]
[1737598005350,3.10672,3218.9,3218.2,0.03107035]
[1737598005504,0.63210983,3219.1,3218.6,0.6766]
[1737598005706,0.63210983,3219.1,3218.7,0.03106413]
[1737598006411,3.10572,3219.9,3219.2,3.1063]
[1737598006609,3.10557,3220.1,3219.3,0.03105936]
[1737598006921,0.8288,3220.4,3219.4,5.10615]
[1737598006922,0.63026318,3219.8,3219.4,5.10615]
[1737598007129,3.10514,3220.5,3219.5,3.78264]
[1737598007333,3.10538,3220.3,3219.5,3.8136985]
[1737598007535,3.93381,3220.7,3219.8,2.0]
[1737598007536,0.62442339,3220.4,3219.8,2.0]
[1737598007845,0.62442339,3220.4,3219.2,0.43]
[1737598007846,3.10436,3221.3,3220.3,3.10529]
[1737598008016,3.10436,3221.3,3220.6,2.0]
[1737598008220,3.10415,3221.5,3220.7,3.13592574]
[1737598008417,0.6359166,3221.3,3220.6,2.0]
[1737598008720,3.1051,3220.5,3220.1,2.0]
[1737598008913,3.10505,3220.6,3220.1,2.0]
[1737598009344,3.10505,3220.6,3220.0,0.6766]
[1737598009640,3.10597,3219.6,3219.5,0.6766]
[1737598009842,3.727149,3219.6,3219.0,2.0]
[1737598010042,3.10634,3219.3,3218.6,5.78353]
[1737598010365,3.10607,3219.5,3218.6,2.70766352]
[1737598010654,3.10607,3219.5,3219.0,2.0]
[1737598010826,3.10627,3219.3,3219.0,2.0]
[1737598011455,3.10607,3219.5,3219.0,2.0]
[1737598012207,3.10617,3219.4,3219.0,2.0]
[1737598012409,3.10633,3219.3,3219.0,2.0]
[1737598012722,3.10597,3219.6,3218.6,2.6766]
[1737598012950,3.10677,3218.8,3218.6,0.6766]
[1737598013129,3.10636,3219.2,3218.2,0.6766]
[1737598013473,3.10636,3219.2,3218.5,2.0]
[1737598013474,3.10664,3219.0,3218.5,2.0]
[1737598014030,3.10665,3218.9,3218.5,2.0]
[1737598015034,0.63343778,3218.8,3218.5,2.0]
[1737598015234,3.10636,3219.2,3218.5,2.0]
[1737598015537,3.10636,3219.2,3218.6,0.03106697]
[1737598015755,3.10584,3219.8,3219.0,3.78313]
[1737598016088,3.10601,3219.6,3219.3,2.0]
[1737598016381,0.61803998,3219.7,3219.3,2.0]
[1737598016675,3.72391998,3219.7,3219.3,2.0]
[1737598016880,3.72391998,3219.7,3219.0,0.6766]
[1737598016881,3.1062,3219.4,3219.0,0.6766]
[1737598017731,3.10663,3219.0,3218.6,2.0]
[1737598018744,3.73484418,3219.2,3218.6,2.0]
[1737598019430,3.10655,3219.0,3218.6,2.0]
[1737598019778,1.10648531,3219.7,3219.0,2.0]
[1737598019940,3.10629,3219.3,3218.6,2.0]
[1737598020351,3.10613,3219.5,3219.0,2.0]
[1737598020582,3.10612,3219.5,3219.0,2.0]
[1737598020744,3.90144,3220.0,3218.4,0.6766]
[1737598020944,3.10642,3219.2,3218.5,5.10697]
[1737598021147,3.10616,3219.5,3218.6,3.10693]
[1737598021343,3.72854756,3219.5,3218.6,3.10693]
[1737598021876,3.72854756,3219.5,3218.9,2.0]
[1737598022045,0.62238756,3219.5,3218.9,2.0]
[1737598022254,3.10626,3219.3,3218.9,2.0]
[1737598022434,3.10655,3219.1,3218.5,2.0]
[1737598022772,3.10629,3219.3,3218.5,3.13801555]
[1737598022947,0.62238756,3219.5,3218.8,2.0]
[1737598023145,3.10571,3219.9,3219.2,2.0]
[1737598023346,3.10571,3219.9,3219.3,0.03105976]
[1737598023549,0.55,3219.3,3219.1,0.03105942]
[1737598023744,3.10655,3219.0,3218.9,0.6766]
[1737598024036,0.55,3218.7,3218.1,0.6766]
[1737598024234,3.10677,3218.8,3218.4,2.0]
[1737598024580,3.10659,3219.0,3218.4,2.0]
[1737598024779,3.10623,3219.4,3218.5,0.03106718]
[1737598025091,0.55,3219.3,3218.7,3.10684]
[1737598025237,0.55,3219.3,3218.8,2.0]
[1737598025438,0.62144243,3219.5,3218.9,3.13762387]
[1737598025638,3.10585,3219.8,3219.2,2.0]
[1737598025841,3.10577,3219.9,3219.3,0.70765968]
[1737598026191,3.10558,3220.1,3219.6,2.0]
[1737598026336,3.10501,3220.6,3219.7,0.03105665]
[1737598026541,3.92633,3221.1,3220.1,0.6766]
[1737598026742,3.497263,3221.0,3220.2,3.13641963]
[1737598027086,0.77143963,3222.0,3220.5,3.10507]
[1737598027087,3.7354869,3221.2,3220.5,3.10507]
[1737598027243,0.6310069,3221.2,3220.8,2.0]
[1737598027645,3.10454,3221.1,3220.8,2.0]
[1737598027897,3.10454,3221.1,3220.1,0.6766]
[1737598027898,0.6310069,3221.2,3220.1,0.6766]
[1737598028081,3.10484,3220.8,3220.2,2.0]
[1737598028293,3.10464,3221.0,3220.3,3.13634007]
[1737598028463,3.10464,3221.0,3220.4,0.0310483]
[1737598028648,3.92559,3221.9,3220.7,2.0]
[1737598028986,3.10442,3221.3,3220.8,0.03104464]
[1737598029190,3.10444,3221.2,3220.8,0.03104464]
[1737598029363,0.55,3221.1,3220.7,2.0]
[1737598029694,0.55,3221.1,3220.3,2.0]
[1737598029877,0.55,3220.8,3220.3,2.0]
[1737598030066,3.65488,3220.8,3220.3,2.0]